[Event "Prague Open 2024"]
[Site "Prague"]
[Date "2024.01.10"]
[Round "7.14"]
[White "Gomes, Mary Ann"]
[Black "Ye, Fan"]
[Result "1-0"]
[ECO "A06"]
[WhiteElo "2332"]
[BlackElo "1660"]
[Annotator "RC"]
[PlyCount "97"]
[EventDate "2024.01.02"]
[EventType "swiss"]
[EventCountry "CZE"]
[SourceTitle "playchess.com"]
[Source "ChessBase"]
[SourceQuality "1"]
[TimeControl "40/5400+30:1800+30"]

1. Nf3 {[%emt 0:00:19]} d5 {[%emt 0:00:07]} 2. g3 {[%emt 0:00:07]} Nf6 {[%emt 0:00:03]} 3. Bg2 {[%emt 0:00:07]} g6 {[%emt 0:00:06]} 4. b3 {[%emt 0:00:04]} c5 {[%emt 0:01:41]} 5. Bb2 {[%emt 0:00:08]} Bg7 {[%emt 0:00:04]} 6. O-O {[%emt 0:00:13]} O-O {[%emt 0:00:02]} 7. e3 {[%emt 0:00:06]} Nc6 {[%emt 0:00:45]} 8. Qe2 {[%emt 0:02:41]} a5 {[%emt 0:04:57]} 9. Ne5 {[%emt 0:00:51]} Nxe5 {[%emt 0:04:32]} 10. Bxe5 {[%emt 0:00:07]} a4 {[%emt 0:00:35]} 11. Nc3 {[%emt 0:01:01]} axb3 {[%emt 0:05:35]} 12. axb3 {[%emt 0:00:47]} Rxa1 {[%emt 0:05:14]} 13. Rxa1 {[%emt 0:02:06]} Bf5 {[%emt 0:06:18]} 14. d3 {[%emt 0:07:11]} Qd7 {[%emt 0:08:32]} 15. Ra7 {[%emt 0:05:03]} Be6 {[%emt 0:00:09]} 16. Na4 {[%emt 0:06:49]} Qc8 {[%emt 0:00:46]} 17. c4 {[%emt 0:01:49]} Rd8 {[%emt 0:08:42]} 18. Qf1 {[%emt 0:24:52]} Qc6 {[%emt 0:12:40]} 19. Qa1 {[%emt 0:01:33]} h5 {[%emt 0:00:12]} 20. Ra5 {[%emt 0:06:03]} h4 {[%emt 0:15:12]} 21. Rxc5 {[%emt 0:06:50]} Qa6 {[%emt 0:00:21]} 22. cxd5 {[%emt 0:06:18]} h3 {[%emt 0:03:34]} 23. dxe6 {[%emt 0:10:45]} hxg2 {[%emt 0:00:04]} 24. exf7+ {[%emt 0:00:09]} Kxf7 {[%emt 0:00:01]} 25. Rc1 {[%emt 0:02:07]} Qxd3 {[%emt 0:00:24]} 26. Nc5 {[%emt 0:00:16]} Qe2 {[%emt 0:00:27]} 27. Re1 {[%emt 0:06:49]} Qh5 {[%emt 0:03:02]} 28. Bxf6 {[%emt 0:02:52]} Bxf6 {[%emt 0:02:12]} 29. Qc1 {[%emt 0:00:15]} Rd5 {[%emt 0:07:42]} 30. Nxb7 {[%emt 0:03:28]} Kg7 {[%emt 0:03:35]} 31. Kxg2 {[%emt 0:01:01]} Rb5 {[%emt 0:02:28]} 32. Qc6 {[%emt 0:00:05]} Rxb3 {[%emt 0:00:04]} 33. Nd8 {[%emt 0:00:33]} Qa5 {[%emt 0:01:44]} 34. Rd1 {[%emt 0:00:54]} Rb6 {[%emt 0:00:39]} 35. Qc4 {[%emt 0:00:55]} Qf5 {[%emt 0:02:05]} 36. Rd5 {[%emt 0:01:30]} Qb1 {[%emt 0:01:01]} 37. Rd2 {[%emt 0:00:22]} Qe1 {[%emt 0:00:48]} 38. Qf7+ {[%emt 0:00:47]} Kh6 {[%emt 0:00:32]} 39. Qf8+ {[%emt 0:00:45]} Kh7 {[%emt 0:00:46]} 40. Qf7+ {[%emt 0:00:11]} Kh6 {[%emt 0:00:03]} 41. Qd5 {[%emt 0:07:21]} Rb1 {[%emt 0:02:10]} 42. Qd3 {[%emt 0:01:45]} Qh1+ {[%emt 0:02:22]} 43. Kh3 {[%emt 0:00:05]} Rb4 {[%emt 0:00:07]} 44. f4 {[%emt 0:01:22]} Qf3 {[%emt 0:05:21]} 45. Nf7+ {[%emt 0:02:42]} Kg7 {[%emt 0:00:29]} 46. Ng5 {[%emt 0:02:50]} Qb7 {[%emt 0:06:09]} 47. Qd5 {[%emt 0:05:03]} Qc8+ {[%emt 0:00:50]} 48. Kg2 {[%emt 0:02:30]} Qc1 {[%emt 0:00:38]} 49. Qf7+ {[%emt 0:00:15]} 1-0

[Event "Prague Open 2024"]
[Site "Prague"]
[Date "2024.01.10"]
[Round "7.15"]
[White "Vidruska, Renate"]
[Black "Shagbazyan, Taron"]
[Result "0-1"]
[ECO "B15"]
[WhiteElo "1972"]
[BlackElo "2403"]
[Annotator "RC"]
[PlyCount "62"]
[EventDate "2024.01.02"]
[EventType "swiss"]
[EventCountry "CZE"]
[SourceTitle "playchess.com"]
[Source "ChessBase"]
[SourceQuality "1"]
[TimeControl "40/5400+30:1800+30"]

1. e4 {[%emt 0:00:30]} c6 {[%emt 0:03:43]} 2. d4 {[%emt 0:00:00]} d5 {[%emt 0:00:06]} 3. Nd2 {[%emt 0:00:26]} dxe4 {[%emt 0:00:07]} 4. Nxe4 {[%emt 0:00:03]} Nf6 {[%emt 0:00:04]} 5. Nxf6+ {[%emt 0:00:06]} exf6 {[%emt 0:00:04]} 6. c3 {[%emt 0:00:08]} Bd6 {[%emt 0:00:05]} 7. Bd3 {[%emt 0:00:04]} O-O {[%emt 0:00:04]} 8. Qc2 {[%emt 0:00:02]} Re8+ {[%emt 0:00:11]} 9. Ne2 {[%emt 0:00:04]} h5 {[%emt 0:00:12]} 10. O-O {[%emt 0:00:05]} h4 {[%emt 0:01:40]} 11. h3 {[%emt 0:00:05]} Nd7 {[%emt 0:00:08]} 12. Bd2 {[%emt 0:01:28]} Nf8 {[%emt 0:04:58]} 13. Rae1 {[%emt 0:00:18]} Bd7 {[%emt 0:07:00]} 14. f4 {[%emt 0:03:08]} b5 {[%emt 0:03:26]} 15. c4 {[%emt 0:05:53]} bxc4 {[%emt 0:11:19]} 16. Bxc4 {[%emt 0:00:06]} f5 {[%emt 0:00:24]} 17. b4 {[%emt 0:04:49]} Nh7 {[%emt 0:07:23]} 18. Qb3 {[%emt 0:03:58]} Be6 {[%emt 0:07:12]} 19. Nc1 {[%emt 0:04:55]} Bxc4 {[%emt 0:07:17]} 20. Qxc4 {[%emt 0:09:06]} Qd7 {[%emt 0:02:26]} 21. Nb3 {[%emt 0:10:35]} Nf6 {[%emt 0:00:16]} 22. Rc1 {[%emt 0:02:04]} Rac8 {[%emt 0:03:13]} 23. Rf3 {[%emt 0:04:59]} Nh5 {[%emt 0:04:55]} 24. d5 {[%emt 0:07:47]} cxd5 {[%emt 0:02:48]} 25. Qxd5 {[%emt 0:00:07]} Rxc1+ {[%emt 0:04:44]} 26. Bxc1 {[%emt 0:24:08]} Re1+ {[%emt 0:03:58]} 27. Kf2 {[%emt 0:00:05]} Rh1 {[%emt 0:06:04]} 28. Be3 {[%emt 0:12:46]} Nf6 {[%emt 0:01:01]} 29. Qa8+ {[%emt 0:00:17]} Kh7 {[%emt 0:00:03]} 30. Qxa7 {[%emt 0:01:15]} Ne4+ {[%emt 0:00:09]} 31. Ke2 {[%emt 0:00:02]} Qb5# {[%emt 0:00:05]} 0-1

[Event "Prague Open 2024"]
[Site "Prague"]
[Date "2024.01.10"]
[Round "7.16"]
[White "Grave, Jacob Templen"]
[Black "Piotraschke, Jens"]
[Result "1-0"]
[ECO "E06"]
[WhiteElo "2296"]
[BlackElo "2056"]
[Annotator "RC"]
[PlyCount "103"]
[EventDate "2024.01.02"]
[EventType "swiss"]
[EventCountry "CZE"]
[SourceTitle "playchess.com"]
[Source "ChessBase"]
[SourceQuality "1"]
[TimeControl "40/5400+30:1800+30"]

1. d4 {[%emt 0:00:04]} Nf6 {[%emt 0:00:09]} 2. c4 {[%emt 0:00:04]} e6 {[%emt 0:00:06]} 3. g3 {[%emt 0:00:11]} d5 {[%emt 0:00:15]} 4. Bg2 {[%emt 0:00:03]} Be7 {[%emt 0:00:06]} 5. Nf3 {[%emt 0:00:04]} O-O {[%emt 0:00:07]} 6. O-O {[%emt 0:00:38]} dxc4 {[%emt 0:00:12]} 7. Qc2 {[%emt 0:00:43]} a6 {[%emt 0:00:54]} 8. a4 {[%emt 0:00:34]} Bd7 {[%emt 0:01:59]} 9. Rd1 {[%emt 0:02:22]} Bc6 {[%emt 0:04:18]} 10. Nc3 {[%emt 0:00:08]} a5 {[%emt 0:06:40]} 11. e4 {[%emt 0:01:36]} Na6 {[%emt 0:02:51]} 12. Ne5 {[%emt 0:02:16]} Nb4 {[%emt 0:04:06]} 13. Qe2 {[%emt 0:00:37]} Nd3 {[%emt 0:03:45]} 14. Nxc4 {[%emt 0:17:23]} Nxc1 {[%emt 0:00:29]} 15. Raxc1 {[%emt 0:00:05]} Bb4 {[%emt 0:15:31]} 16. b3 {[%emt 0:05:07]} Qe7 {[%emt 0:05:13]} 17. Ne5 {[%emt 0:14:26]} Be8 {[%emt 0:00:11]} 18. Nd3 {[%emt 0:01:34]} Ba3 {[%emt 0:10:29]} 19. Rc2 {[%emt 0:03:48]} c6 {[%emt 0:00:52]} 20. Nb1 {[%emt 0:12:50]} Bb4 {[%emt 0:00:13]} 21. Nxb4 {[%emt 0:01:18]} Qxb4 {[%emt 0:00:15]} 22. Qc4 {[%emt 0:10:11]} Qb6 {[%emt 0:04:57]} 23. Nd2 {[%emt 0:02:52]} Bd7 {[%emt 0:01:46]} 24. Qc3 {[%emt 0:03:01]} Rfd8 {[%emt 0:04:31]} 25. Nc4 {[%emt 0:00:27]} Qa7 {[%emt 0:00:12]} 26. e5 {[%emt 0:03:21]} Nd5 {[%emt 0:02:25]} 27. Bxd5 {[%emt 0:00:28]} cxd5 {[%emt 0:00:26]} 28. Nd6 {[%emt 0:00:09]} Bc6 {[%emt 0:00:36]} 29. Qe3 {[%emt 0:01:47]} Qb6 {[%emt 0:02:07]} 30. h4 {[%emt 0:03:31]} Qc7 {[%emt 0:01:25]} 31. Qf4 {[%emt 0:01:36]} Rf8 {[%emt 0:00:41]} 32. h5 {[%emt 0:01:24]} h6 {[%emt 0:00:13]} 33. Rdc1 {[%emt 0:01:38]} Ra6 {[%emt 0:02:01]} 34. Rc3 {[%emt 0:00:42]} Qe7 {[%emt 0:02:17]} 35. Re3 {[%emt 0:01:58]} Qg5 {[%emt 0:06:17]} 36. Qxg5 {[%emt 0:02:54]} hxg5 {[%emt 0:00:07]} 37. f4 {[%emt 0:01:33]} g4 {[%emt 0:02:21]} 38. f5 {[%emt 0:02:07]} Kh7 {[%emt 0:01:21]} 39. Rf1 {[%emt 0:01:15]} Raa8 {[%emt 0:00:39]} 40. Rf4 {[%emt 0:02:38]} Kg8 {[%emt 0:15:57]} 41. f6 {[%emt 0:12:47]} gxf6 {[%emt 0:00:26]} 42. Rxf6 {[%emt 0:00:09]} Ra6 {[%emt 0:04:03]} 43. Rf4 {[%emt 0:01:20]} Rb6 {[%emt 0:02:48]} 44. Rxg4+ {[%emt 0:00:42]} Kh7 {[%emt 0:00:14]} 45. Rf4 {[%emt 0:05:54]} Rb4 {[%emt 0:01:09]} 46. Nxf7 {[%emt 0:01:54]} Rg8 {[%emt 0:00:41]} 47. Nd6 {[%emt 0:00:41]} Kh6 {[%emt 0:02:17]} 48. g4 {[%emt 0:00:44]} Kg5 {[%emt 0:00:36]} 49. Ref3 {[%emt 0:00:30]} Be8 {[%emt 0:02:09]} 50. Rf8 {[%emt 0:01:25]} Rxf8 {[%emt 0:00:19]} 51. Rxf8 {[%emt 0:00:05]} Bc6 {[%emt 0:00:09]} 52. Nf7+ {[%emt 0:01:22]} 1-0

[Event "Prague Open 2024"]
[Site "Prague"]
[Date "2024.01.10"]
[Round "7.17"]
[White "Morchiashvili, Bachana"]
[Black "Husa, Daniel"]
[Result "1-0"]
[ECO "D26"]
[WhiteElo "2295"]
[BlackElo "2040"]
[Annotator "RC"]
[PlyCount "65"]
[EventDate "2024.01.02"]
[EventType "swiss"]
[EventCountry "CZE"]
[SourceTitle "playchess.com"]
[Source "ChessBase"]
[SourceQuality "1"]
[TimeControl "40/5400+30:1800+30"]

1. d4 {[%emt 0:00:01]} d5 {[%emt 0:01:19]} 2. Nf3 {[%emt 0:00:06]} Nf6 {[%emt 0:00:16]} 3. c4 {[%emt 0:00:04]} dxc4 {[%emt 0:00:11]} 4. e3 {[%emt 0:00:09]} e6 {[%emt 0:00:09]} 5. Bxc4 {[%emt 0:00:06]} c5 {[%emt 0:00:24]} 6. Qe2 {[%emt 0:00:19]} a6 {[%emt 0:00:25]} 7. dxc5 {[%emt 0:00:10]} Bxc5 {[%emt 0:00:14]} 8. O-O {[%emt 0:00:07]} Nbd7 {[%emt 0:00:55]} 9. e4 {[%emt 0:09:07]} b5 {[%emt 0:00:19]} 10. Bd3 {[%emt 0:04:47]} Bb7 {[%emt 0:00:26]} 11. Bg5 {[%emt 0:03:04]} Bd6 {[%emt 0:16:59]} 12. Nbd2 {[%emt 0:05:40]} Qb8 {[%emt 0:17:34]} 13. a4 {[%emt 0:04:22]} b4 {[%emt 0:13:55]} 14. Nc4 {[%emt 0:03:28]} Bc7 {[%emt 0:05:21]} 15. Bc2 {[%emt 0:15:38]} a5 {[%emt 0:04:09]} 16. b3 {[%emt 0:06:58]} Ba6 {[%emt 0:06:26]} 17. Rad1 {[%emt 0:03:04]} Nb6 {[%emt 0:08:10]} 18. Bd3 {[%emt 0:01:18]} Nfd7 {[%emt 0:02:05]} 19. Nd6+ {[%emt 0:04:42]} Bxd6 {[%emt 0:01:46]} 20. Bxa6 {[%emt 0:00:03]} O-O {[%emt 0:03:16]} 21. Bb5 {[%emt 0:01:02]} Ne5 {[%emt 0:03:30]} 22. Nd4 {[%emt 0:03:19]} Ng6 {[%emt 0:03:03]} 23. g3 {[%emt 0:01:11]} h6 {[%emt 0:05:06]} 24. Be3 {[%emt 0:01:33]} Bc7 {[%emt 0:02:37]} 25. Bc6 {[%emt 0:00:33]} Ra7 {[%emt 0:00:25]} 26. Nb5 {[%emt 0:00:13]} Ne5 {[%emt 0:01:02]} 27. Rc1 {[%emt 0:03:33]} Nxc6 {[%emt 0:00:36]} 28. Rxc6 {[%emt 0:00:04]} Rb7 {[%emt 0:00:51]} 29. Nxc7 {[%emt 0:00:10]} Nxa4 {[%emt 0:01:00]} 30. bxa4 {[%emt 0:00:17]} Rxc7 {[%emt 0:00:33]} 31. Bf4 {[%emt 0:00:18]} b3 {[%emt 0:00:47]} 32. Bxc7 {[%emt 0:00:18]} Qb4 {[%emt 0:00:30]} 33. Bd6 {[%emt 0:00:38]} 1-0

[Event "Prague Open 2024"]
[Site "Prague"]
[Date "2024.01.10"]
[Round "7.18"]
[White "Jun, Rudolf"]
[Black "Janik, Marek Tobias"]
[Result "1-0"]
[ECO "C42"]
[WhiteElo "2283"]
[BlackElo "2038"]
[Annotator "RC"]
[PlyCount "81"]
[EventDate "2024.01.02"]
[EventType "swiss"]
[EventCountry "CZE"]
[SourceTitle "playchess.com"]
[Source "ChessBase"]
[SourceQuality "1"]
[TimeControl "40/5400+30:1800+30"]

1. e4 {[%emt 0:00:05]} e5 {[%emt 0:00:08]} 2. Nf3 {[%emt 0:00:41]} Nf6 {[%emt 0:00:10]} 3. Nxe5 {[%emt 0:01:21]} d6 {[%emt 0:00:08]} 4. Nf3 {[%emt 0:01:39]} Nxe4 {[%emt 0:00:15]} 5. d3 {[%emt 0:00:54]} Nf6 {[%emt 0:00:57]} 6. d4 {[%emt 0:00:28]} d5 {[%emt 0:00:56]} 7. h3 {[%emt 0:01:23]} h6 {[%emt 0:03:53]} 8. Bd3 {[%emt 0:01:00]} Bd6 {[%emt 0:00:18]} 9. O-O {[%emt 0:00:25]} O-O {[%emt 0:00:11]} 10. Re1 {[%emt 0:04:10]} Be6 {[%emt 0:03:19]} 11. Nc3 {[%emt 0:00:59]} c6 {[%emt 0:01:30]} 12. Ne5 {[%emt 0:03:13]} Nbd7 {[%emt 0:05:10]} 13. f4 {[%emt 0:00:47]} Nb6 {[%emt 0:08:46]} 14. f5 {[%emt 0:04:17]} Bd7 {[%emt 0:01:11]} 15. Bf4 {[%emt 0:03:43]} Qc7 {[%emt 0:06:44]} 16. Qf3 {[%emt 0:10:25]} Rae8 {[%emt 0:22:28]} 17. a4 {[%emt 0:09:40]} Nc4 {[%emt 0:04:48]} 18. Bxc4 {[%emt 0:04:59]} dxc4 {[%emt 0:00:10]} 19. g4 {[%emt 0:06:10]} Bc8 {[%emt 0:16:22]} 20. a5 {[%emt 0:12:12]} Nd7 {[%emt 0:07:45]} 21. Qg3 {[%emt 0:01:00]} Nf6 {[%emt 0:04:09]} 22. Re2 {[%emt 0:09:40]} Nh7 {[%emt 0:10:45]} 23. Ne4 {[%emt 0:08:40]} Ng5 24. Rae1 {[%emt 0:02:56]} f6 {[%emt 0:01:46]} 25. Nxd6 {[%emt 0:02:13]} Qxd6 {[%emt 0:00:09]} 26. Ng6 {[%emt 0:02:23]} Qxd4+ {[%emt 0:00:33]} 27. Be3 {[%emt 0:00:37]} Rxe3 {[%emt 0:00:57]} 28. Qxe3 {[%emt 0:00:36]} Nf3+ {[%emt 0:00:27]} 29. Kf2 {[%emt 0:01:19]} Qxe3+ {[%emt 0:00:32]} 30. Rxe3 {[%emt 0:00:03]} Nxe1 {[%emt 0:00:06]} 31. Nxf8 {[%emt 0:00:25]} Kxf8 {[%emt 0:00:24]} 32. Rxe1 {[%emt 0:00:56]} h5 {[%emt 0:01:00]} 33. Re4 {[%emt 0:00:36]} b5 {[%emt 0:00:31]} 34. axb6 {[%emt 0:00:51]} axb6 {[%emt 0:00:09]} 35. Rxc4 {[%emt 0:00:09]} Bd7 {[%emt 0:00:23]} 36. gxh5 {[%emt 0:00:45]} b5 {[%emt 0:00:54]} 37. Rf4 {[%emt 0:00:16]} Ke7 {[%emt 0:00:19]} 38. c3 {[%emt 0:00:24]} c5 {[%emt 0:00:41]} 39. Ke3 {[%emt 0:00:10]} Bc6 {[%emt 0:00:14]} 40. h6 {[%emt 0:00:56]} gxh6 {[%emt 0:00:11]} 41. Rh4 {[%emt 0:30:01]} 1-0

[Event "Prague Open 2024"]
[Site "Prague"]
[Date "2024.01.10"]
[Round "7.19"]
[White "Brnusak, Tomas"]
[Black "Kirtadze, Anastasia"]
[Result "0-1"]
[ECO "B40"]
[WhiteElo "2229"]
[BlackElo "1981"]
[Annotator "TA"]
[PlyCount "78"]
[EventDate "2024.01.02"]
[EventType "swiss"]
[EventCountry "CZE"]
[SourceTitle "playchess.com"]
[Source "ChessBase"]
[SourceQuality "1"]
[TimeControl "40/5400+30:1800+30"]

1. e4 {[%emt 0:00:30]} c5 {[%emt 0:00:02]} 2. Nf3 {[%emt 0:00:06]} e6 {[%emt 0:00:04]} 3. b3 {[%emt 0:00:15]} Nc6 {[%emt 0:00:18]} 4. Bb2 {[%emt 0:00:05]} a6 {[%emt 0:01:04]} 5. c4 {[%emt 0:01:50]} Qc7 {[%emt 0:02:37]} 6. Nc3 {[%emt 0:02:58]} Nf6 {[%emt 0:01:41]} 7. Be2 {[%emt 0:00:47]} Nd4 {[%emt 0:09:24]} 8. Bd3 {[%emt 0:08:02]} d6 {[%emt 0:04:56]} 9. Nxd4 {[%emt 0:02:28]} cxd4 {[%emt 0:00:05]} 10. Ne2 {[%emt 0:00:06]} e5 {[%emt 0:00:05]} 11. O-O {[%emt 0:02:07]} g5 {[%emt 0:03:09]} 12. Rc1 {[%emt 0:05:08]} h5 {[%emt 0:04:03]} 13. b4 {[%emt 0:06:11]} Bd7 {[%emt 0:03:43]} 14. Qb3 {[%emt 0:14:35]} h4 {[%emt 0:03:56]} 15. f4 {[%emt 0:12:22]} gxf4 {[%emt 0:01:37]} 16. Nxf4 {[%emt 0:00:11]} exf4 {[%emt 0:01:43]} 17. Bxd4 {[%emt 0:00:05]} Be7 {[%emt 0:08:17]} 18. Qb2 {[%emt 0:05:06]} Rh6 {[%emt 0:00:55]} 19. Rxf4 {[%emt 0:03:31]} Ng4 {[%emt 0:04:55]} 20. Be2 {[%emt 0:04:33]} Rg6 {[%emt 0:05:56]} 21. Rcf1 {[%emt 0:08:22]} Be6 {[%emt 0:01:11]} 22. c5 {[%emt 0:05:37]} dxc5 {[%emt 0:04:13]} 23. Bxc5 {[%emt 0:00:05]} Bf6 {[%emt 0:01:50]} 24. d4 {[%emt 0:06:33][%cal Bd2d4,Bd4d5,Bd5e6,Be6f7][%mdl 32]} Bg5 {[%emt 0:10:28]} 25. d5 {[%emt 0:03:49]} Bxf4 {[%emt 0:11:45]} 26. Qh8+ {[%emt 0:00:05]} Kd7 {[%emt 0:00:02]} 27. dxe6+ {[%emt 0:00:06]} Kc6 {[%emt 0:00:20]} 28. Qc3 {[%emt 0:00:17]} Bd2 {[%emt 0:02:50]} 29. Qh3 {[%emt 0:04:06]} b6 30. Bxg4 {[%emt 0:01:12]} bxc5 {[%emt 0:05:03]} 31. bxc5 {[%emt 0:01:49]} Qe5 {[%emt 0:03:19]} 32. exf7 {[%emt 0:00:19]} Qd4+ {[%emt 0:03:35]} 33. Kh1 {[%emt 0:00:06]} Rf6 {[%emt 0:00:08]} 34. Bf3 {[%emt 0:01:51]} Qe5 {[%emt 0:00:41]} 35. Rd1 {[%emt 0:01:20]} Rd8 {[%emt 0:01:29]} 36. Qg4 {[%emt 0:00:44]} Rxf7 {[%emt 0:00:50]} 37. Qg6+ {[%emt 0:00:27]} Rf6 {[%emt 0:00:20]} 38. Qh7 {[%emt 0:00:32]} Ba5 {[%emt 0:01:17]} 39. Rb1 {[%emt 0:00:44]} Bc7 0-1

[Event "Prague Open 2024"]
[Site "Prague"]
[Date "2024.01.10"]
[Round "7.20"]
[White "Dushatov, Timur"]
[Black "Matras, Ondrej"]
[Result "0-1"]
[ECO "C15"]
[WhiteElo "1976"]
[BlackElo "2185"]
[Annotator "RC"]
[PlyCount "92"]
[EventDate "2024.01.02"]
[EventType "swiss"]
[EventCountry "CZE"]
[SourceTitle "playchess.com"]
[Source "ChessBase"]
[SourceQuality "1"]
[TimeControl "40/5400+30:1800+30"]

1. e4 e6 {[%emt 0:05:03]} 2. d4 {[%emt 0:00:15]} d5 {[%emt 0:00:02]} 3. Nc3 {[%emt 0:00:05]} Bb4 {[%emt 0:00:07]} 4. Qd3 {[%emt 0:00:52]} dxe4 {[%emt 0:04:11]} 5. Qxe4 {[%emt 0:00:26]} Nf6 {[%emt 0:00:37]} 6. Qh4 {[%emt 0:00:13]} Qd5 {[%emt 0:10:32]} 7. Nge2 {[%emt 0:07:22]} Nc6 {[%emt 0:04:51]} 8. Be3 {[%emt 0:09:38]} O-O {[%emt 0:14:11]} 9. a3 {[%emt 0:10:02]} Qa5 {[%emt 0:01:26]} 10. Bd2 {[%emt 0:07:35]} Ne7 {[%emt 0:08:44]} 11. Rb1 {[%emt 0:09:00]} Bxc3 {[%emt 0:01:02]} 12. Nxc3 {[%emt 0:00:31]} Nf5 {[%emt 0:02:55]} 13. Qf4 {[%emt 0:06:12]} Qb6 {[%emt 0:01:23]} 14. Ne2 {[%emt 0:11:55]} Rd8 {[%emt 0:00:28]} 15. c3 {[%emt 0:02:12]} Bd7 {[%emt 0:03:01]} 16. Nc1 {[%emt 0:05:30]} Bb5 {[%emt 0:07:40]} 17. Nd3 {[%emt 0:00:47]} Nxd4 {[%emt 0:18:36]} 18. cxd4 {[%emt 0:01:59]} Rxd4 {[%emt 0:00:02]} 19. Qf3 {[%emt 0:01:41]} Bxd3 {[%emt 0:02:53]} 20. Bxd3 {[%emt 0:05:06]} Qd6 {[%emt 0:00:15]} 21. Qxb7 {[%emt 0:03:12]} Rd8 {[%emt 0:01:01]} 22. Bc3 {[%emt 0:00:38]} Rxd3 {[%emt 0:00:41]} 23. O-O {[%emt 0:00:15]} Qb6 {[%emt 0:05:08]} 24. Qxb6 {[%emt 0:01:32]} cxb6 {[%emt 0:00:01]} 25. Rbc1 {[%emt 0:01:07]} Nd5 {[%emt 0:00:45]} 26. Be1 {[%emt 0:03:08]} f6 {[%emt 0:02:26]} 27. f3 {[%emt 0:02:20]} Nf4 {[%emt 0:00:26]} 28. Rc2 {[%emt 0:00:44]} Rd1 {[%emt 0:00:57]} 29. Bg3 {[%emt 0:00:24]} Rxf1+ {[%emt 0:02:22]} 30. Kxf1 {[%emt 0:00:05]} Nd5 {[%emt 0:00:25]} 31. Ke2 {[%emt 0:00:05]} e5 {[%emt 0:00:27]} 32. Rc6 {[%emt 0:01:06]} Kf7 {[%emt 0:00:14]} 33. a4 {[%emt 0:00:47]} Ke7 {[%emt 0:00:22]} 34. a5 {[%emt 0:00:14]} Kd7 {[%emt 0:00:23]} 35. Rc1 {[%emt 0:00:17]} Rc8 {[%emt 0:00:32]} 36. Rxc8 {[%emt 0:00:46]} Kxc8 {[%emt 0:00:02]} 37. axb6 {[%emt 0:00:20]} axb6 {[%emt 0:00:18]} 38. Kd3 {[%emt 0:01:01]} Kd7 {[%emt 0:00:11]} 39. h4 {[%emt 0:00:45]} h5 {[%emt 0:03:40]} 40. Ke4 {[%emt 0:01:49]} Ke6 {[%emt 0:00:09]} 41. b3 {[%emt 0:30:35]} b5 {[%emt 0:31:28]} 42. Bh2 {[%emt 0:04:10]} f5+ {[%emt 0:00:00]} 43. Kd3 {[%emt 0:00:00]} Nb4+ {[%emt 0:00:00]} 44. Ke3 {[%emt 0:00:00]} Kd5 {[%emt 0:00:00]} 45. Bg1 {[%emt 0:00:00]} Nc2+ {[%emt 0:00:00]} 46. Kd2 {[%emt 0:00:00]} Nd4 {[%emt 0:00:00]} 0-1

[Event "Prague Open 2024"]
[Site "Prague"]
[Date "2024.01.11"]
[Round "8.1"]
[White "Pyrig, Roman"]
[Black "Mis, Mieszko"]
[Result "0-1"]
[ECO "B13"]
[WhiteElo "2154"]
[BlackElo "2301"]
[Annotator "RC"]
[PlyCount "112"]
[EventDate "2024.01.02"]
[EventType "swiss"]
[EventCountry "CZE"]
[SourceTitle "playchess.com"]
[Source "ChessBase"]
[SourceQuality "1"]
[TimeControl "40/5400+30:1800+30"]

1. e4 {[%emt 0:00:08]} c6 {[%emt 0:00:06]} 2. d4 {[%emt 0:00:05]} d5 {[%emt 0:00:05]} 3. exd5 {[%emt 0:00:06]} cxd5 {[%emt 0:00:04]} 4. Bd3 {[%emt 0:00:07]} Nf6 {[%emt 0:00:09]} 5. c3 {[%emt 0:00:05]} Bg4 {[%emt 0:00:12]} 6. f3 {[%emt 0:12:56]} Bh5 {[%emt 0:03:53]} 7. g4 {[%emt 0:00:06]} Bg6 {[%emt 0:00:23]} 8. g5 {[%emt 0:00:01]} Nfd7 {[%emt 0:03:22]} 9. f4 {[%emt 0:03:28]} e6 {[%emt 0:02:05]} 10. Ne2 {[%emt 0:05:41]} Nc6 {[%emt 0:01:56]} 11. h4 {[%emt 0:27:47]} Bd6 {[%emt 0:03:11]} 12. h5 {[%emt 0:00:28]} Bxd3 {[%emt 0:00:21]} 13. Qxd3 {[%emt 0:00:02]} Qc7 {[%emt 0:00:28]} 14. Be3 {[%emt 0:00:50]} O-O-O {[%emt 0:06:04]} 15. Nd2 {[%emt 0:01:24]} Kb8 {[%emt 0:00:42]} 16. a3 {[%emt 0:03:13]} Ne7 {[%emt 0:01:59]} 17. O-O-O {[%emt 0:04:57]} Nb6 {[%emt 0:02:31]} 18. Kb1 {[%emt 0:01:48]} Rc8 {[%emt 0:02:56]} 19. Rhf1 {[%emt 0:05:32]} Nf5 {[%emt 0:02:05]} 20. Bg1 {[%emt 0:04:30]} Qc6 {[%emt 0:06:02]} 21. Rc1 {[%emt 0:07:39]} Be7 {[%emt 0:02:25]} 22. Rc2 {[%emt 0:04:04]} Nd6 {[%emt 0:02:41]} 23. Ka1 {[%emt 0:05:54]} Qa4 {[%emt 0:02:39]} 24. b3 {[%emt 0:00:38]} Qd7 {[%emt 0:08:09]} 25. a4 {[%emt 0:00:24]} f6 {[%emt 0:03:37]} 26. Bh2 {[%emt 0:00:07]} f5 {[%emt 0:02:34]} 27. Ng1 {[%emt 0:03:46]} Ne4 {[%emt 0:00:51]} 28. Ngf3 {[%emt 0:00:02]} Qe8 {[%emt 0:01:34]} 29. Ne5 {[%emt 0:00:45]} Qxh5 {[%emt 0:04:37]} 30. a5 {[%emt 0:00:01]} Na8 {[%emt 0:00:29]} 31. Nxe4 {[%emt 0:06:13]} dxe4 {[%emt 0:00:37]} 32. Qd2 {[%emt 0:00:03]} Nc7 {[%emt 0:01:58]} 33. c4 {[%emt 0:00:17]} Na6 {[%emt 0:00:43]} 34. c5 {[%emt 0:00:01]} Rhd8 {[%emt 0:00:23]} 35. b4 {[%emt 0:03:39]} Qe8 {[%emt 0:04:30]} 36. Rb1 {[%emt 0:00:09]} Qb5 {[%emt 0:00:53]} 37. Bg1 {[%emt 0:01:30]} h6 {[%emt 0:00:30]} 38. Be3 {[%emt 0:00:11]} Nc7 {[%emt 0:00:45]} 39. Nc4 {[%emt 0:00:50]} Nd5 {[%emt 0:00:17]} 40. Rb3 {[%emt 0:00:26]} Rf8 {[%emt 0:06:47]} 41. g6 {[%emt 0:02:10]} Rfd8 {[%emt 0:01:12]} 42. Na3 {[%emt 0:01:08]} Qe8 {[%emt 0:02:26]} 43. Ka2 {[%emt 0:00:50]} Bf6 {[%emt 0:02:59]} 44. Rc4 {[%emt 0:00:03]} Qxg6 {[%emt 0:02:10]} 45. b5 {[%emt 0:00:03]} Nxe3 {[%emt 0:05:05]} 46. Rxe3 {[%emt 0:02:51]} e5 {[%emt 0:03:58]} 47. a6 {[%emt 0:09:06]} Qf7 {[%emt 0:04:26]} 48. Rb3 {[%emt 0:01:08]} Rxd4 {[%emt 0:02:04]} 49. Rxd4 {[%emt 0:00:07]} exd4 {[%emt 0:00:02]} 50. Qb4 {[%emt 0:06:28]} b6 {[%emt 0:05:32]} 51. cxb6 {[%emt 0:03:32]} axb6 {[%emt 0:00:27]} 52. a7+ {[%emt 0:02:23]} Kxa7 {[%emt 0:01:37]} 53. Kb1 {[%emt 0:00:52]} Qc7 {[%emt 0:00:59]} 54. Qa4+ {[%emt 0:02:04]} Kb8 {[%emt 0:00:07]} 55. Rb4 {[%emt 0:00:12]} Qc1+ {[%emt 0:03:04]} 56. Ka2 {[%emt 0:00:01]} d3 {[%emt 0:00:46]} 0-1